Workbook

Sheet Klubber (hidden)
A1: Klubnr | B1: Klub | C1: Region | D1: Luk
A2: 1 | B2: Nexø BK | C2: Øst Bh
A3: 2 | B3: Nordborn. BK | C3: Øst Bh
A4: 3 | B4: Rønne BK | C4: Øst Bh
A5: 4 | B5: Østermarie BK | C5: Øst Bh
A6: 5 | B6: Åkirkeby BK | C6: Øst Bh
A7: 101 | B7: BK Amagerbro | C7: Øst Sj
A8: 102 | B8: BK Amager | C8: Øst Sj
A9: 105 | B9: Brøndby BK | C9: Øst Sj
A10: 108 | B10: Frihedens BK | C10: Øst Sj
A11: 110 | B11: Gladsaxe BK | C11: Øst Sj
A12: 111 | B12: BK Grøndal | C12: Øst Sj
A13: 116 | B13: KBK/BNV | C13: Øst Sj
A14: 118 | B14: Naboerne BK | C14: Øst Sj | D14: L
A15: 122 | B15: Rødovre BK | C15: Øst Sj
A16: 125 | B16: BK Søborg | C16: Øst Sj
A17: 126 | B17: Værebro BK | C17: Øst Sj
A18: 128 | B18: Copenhagen Pool-Sn | C18: Øst Sj
A19: 201 | B19: Abertslund BK | C19: Øst Sj
A20: 202 | B20: Asnæs/Grevinge BK | C20: Øst Sj
A21: 203 | B21: Birkerød BK | C21: Øst Sj
A22: 204 | B22: Bårse BC | C22: Øst Sj | D22: L
A23: 205 | B23: Enebærhavens BK | C23: Øst Sj
A24: 206 | B24: Faxe BK | C24: Øst Sj
A25: 208 | B25: Fredensborg BC | C25: Øst Sj
A26: 210 | B26: Gersagerparken BK | C26: Øst Sj
A27: 211 | B27: BK Gilleleje | C27: Øst Sj
A28: 212 | B28: Grantoften BK | C28: Øst Sj
A29: 213 | B29: Greve BK | C29: Øst Sj
A30: 214 | B30: Græsted BK | C30: Øst Sj
A31: 217 | B31: Haslev BK | C31: Øst Sj
A32: 218 | B32: Fløng-Hedehusene BK | C32: Øst Sj
A33: 219 | B33: Helsingør Sports BK | C33: Øst Sj
A34: 220 | B34: Herlev BK | C34: Øst Sj
A35: 221 | B35: BC Holbæk | C35: Øst Sj
A36: 222 | B36: Holmegård BK | C36: Øst Sj
A37: 223 | B37: Hundested BK | C37: Øst Sj
A38: 224 | B38: Hvalsø BF | C38: Øst Sj
A39: 225 | B39: Hvidebæk BK | C39: Øst Sj
A40: 226 | B40: Hørsholm BK | C40: Øst Sj
A41: 227 | B41: BK Ishøj | C41: Øst Sj
A42: 228 | B42: Jyderup BK | C42: Øst Sj
A43: 230 | B43: Jægerspris BC | C43: Øst Sj
A44: 231 | B44: Kalundborg BC | C44: Øst Sj
A45: 232 | B45: "Keglen" Høng | C45: Øst Sj
A46: 233 | B46: Korsør BC | C46: Øst Sj
A47: 234 | B47: Kyndby BK | C47: Øst Sj
A48: 235 | B48: Nykøbing Sj. BK | C48: Øst Sj
A49: 236 | B49: Næstved BK | C49: Øst Sj
A50: 237 | B50: Osted BK | C50: Øst Sj
A51: 238 | B51: Ramsø BK | C51: Øst Sj
A52: 239 | B52: Ringsted BC | C52: Øst Sj
A53: 240 | B53: Rishøj BK | C53: Øst Sj
A54: 242 | B54: Skælskør BC | C54: Øst Sj
A55: 243 | B55: Slagelse BK | C55: Øst Sj
A56: 244 | B56: Slangerup BK | C56: Øst Sj
A57: 245 | B57: Solrød BK | C57: Øst Sj
A58: 246 | B58: BK Sorana | C58: Øst Sj
A59: 247 | B59: Stevns BK | C59: Øst Sj
A60: 248 | B60: Svinninge BC | C60: Øst Sj
A61: 249 | B61: Tune Billard Afd. | C61: Øst Sj
A62: 250 | B62: Taastrup BK | C62: Øst Sj
A63: 251 | B63: Vallø BK | C63: Øst Sj
A64: 252 | B64: Vejby BK | C64: Øst Sj
A65: 253 | B65: Vig BC | C65: Øst Sj
A66: 254 | B66: Vildtbanegård II (Ishøj) | C66: Øst Sj
A67: 255 | B67: Værløse BK | C67: Øst Sj
A68: 257 | B68: Ølstykke BK | C68: Øst Sj
A69: 260 | B69: BK 2004 | C69: Øst Sj
A70: 261 | B70: Falcon Pool | C70: Øst Sj | D70: L
A71: 262 | B71: Herlev IF. Pool Club | C71: Øst Sj
A72: 401 | B72: Nakskov BK | C72: Øst Lf
A73: 402 | B73: BK Søllested | C73: Øst Lf
A74: 403 | B74: BK Maribo | C74: Øst Lf
A75: 404 | B75: Sakskøbing BK | C75: Øst Lf
A76: 405 | B76: Nykøbing F. BK | C76: Øst Lf
A77: 406 | B77: BK Højen | C77: Øst Lf
A78: 407 | B78: Vordingborg BC | C78: Øst Lf
A79: 408 | B79: Rødby BK | C79: Øst Lf | D79: L
A80: 409 | B80: BK 2004 | C80: Øst Lf | D80: L
A81: 501 | B81: Assens BK | C81: Vest Fy
A82: 502 | B82: Billarden '93 | C82: Vest Fy
A83: 503 | B83: Bristol Odense | C83: Vest Fy
A84: 504 | B84: Ejby BK | C84: Vest Fy
A85: 505 | B85: BK Faaborg | C85: Vest Fy
A86: 506 | B86: Billard Øst (Odense) | C86: Vest Fy
A87: 507 | B87: Glamsbjerg BK | C87: Vest Fy
A88: 509 | B88: Haarby BK | C88: Vest Fy
A89: 510 | B89: Haastrup BK | C89: Vest Fy
A90: 511 | B90: Marstal BK | C90: Vest Fy
A91: 513 | B91: Midtfyns BK | C91: Vest Fy
A92: 514 | B92: BK Nyborg | C92: Vest Fy
A93: 515 | B93: Næsby BK | C93: Vest Fy
A94: 516 | B94: BK Nørre Aaby | C94: Vest Fy
A95: 518 | B95: Otterup BK | C95: Vest Fy
A96: 519 | B96: Stenstrup BK | C96: Vest Fy
A97: 520 | B97: Svendborg BK | C97: Vest Fy | D97: L
A98: 522 | B98: Søndersø BK | C98: Vest Fy
A99: 523 | B99: Tommerup BK | C99: Vest Fy
A100: 524 | B100: Sydfyns BK | C100: Vest Fy
A101: 525 | B101: Vissenbjerg BK | C101: Vest Fy
A102: 526 | B102: Ørbæk BK | C102: Vest Fy
A103: 527 | B103: Aarup BK | C103: Vest Fy
A104: 603 | B104: Aalborg BK | C104: Vest Jy
A105: 604 | B105: Halvrimmen BK | C105: Vest Jy
A106: 606 | B106: Arden BK | C106: Vest Jy
A107: 607 | B107: BK Aros | C107: Vest Jy | D107: L
A108: 608 | B108: Aars BK | C108: Vest Jy
A109: 609 | B109: Asaa BK | C109: Vest Jy
A110: 610 | B110: Aulum BK | C110: Vest Jy
A111: 611 | B111: Balling BK | C111: Vest Jy
A112: 612 | B112: Brovst BK | C112: Vest Jy
A113: 613 | B113: Aarhus P&BK | C113: Vest Jy
A114: 614 | B114: Århus Senior Bill. | C114: Vest Jy
A115: 615 | B115: BK '99 Thisted | C115: Vest Jy
A116: 616 | B116: BK Ans | C116: Vest Jy
A117: 617 | B117: Bov BK | C117: Vest Jy
A118: 618 | B118: Bramming BK | C118: Vest Jy
A119: 619 | B119: Brande BK | C119: Vest Jy
A120: 620 | B120: Brønderslev BK | C120: Vest Jy
A121: 622 | B121: Hjørring BK | C121: Vest Jy
A122: 623 | B122: Gadbjerg BK | C122: Vest Jy | D122: L
A123: 624 | B123: Børkop BK | C123: Vest Jy
A124: 625 | B124: Darum BK | C124: Vest Jy
A125: 626 | B125: Ebeltoft BK | C125: Vest Jy
A126: 627 | B126: Esbjerg BC | C126: Vest Jy
A127: 628 | B127: Stalden Pool Club | C127: Vest Jy
A128: 629 | B128: Fast Eddies Pool Club | C128: Vest Jy
A129: 630 | B129: BK Fluen (Århus) | C129: Vest Jy
A130: 631 | B130: Fredericia BK | C130: Vest Jy
A131: 633 | B131: BK Frem (Kolding) | C131: Vest Jy
A132: 634 | B132: Gellerup BK | C132: Vest Jy | D132: L
A133: 635 | B133: Givskud BK | C133: Vest Jy
A134: 636 | B134: Glejbjerg BK | C134: Vest Jy
A135: 637 | B135: Grenaa BK | C135: Vest Jy
A136: 638 | B136: Gråsten BK | C136: Vest Jy
A137: 639 | B137: Gørding BK | C137: Vest Jy
A138: 640 | B138: Haderslev BK | C138: Vest Jy
A139: 641 | B139: Klub 10 (Horsens) | C139: Vest Jy
A140: 642 | B140: Helle BK | C140: Vest Jy
A141: 643 | B141: B67 Herning | C141: Vest Jy
A142: 644 | B142: Hjallerup BK | C142: Vest Jy
A143: 645 | B143: Holstebro BK | C143: Vest Jy
A144: 646 | B144: Holsted BK | C144: Vest Jy
A145: 648 | B145: Horsens BK | C145: Vest Jy
A146: 649 | B146: Hovborg BK | C146: Vest Jy
A147: 650 | B147: Hovedgaard BK | C147: Vest Jy
A148: 652 | B148: Ikast BK | C148: Vest Jy
A149: 653 | B149: Jerslev BK | C149: Vest Jy | D149: L
A150: 654 | B150: Juelsminde BK | C150: Vest Jy
A151: 655 | B151: Klokkerholm BK | C151: Vest Jy
A152: 656 | B152: Klovborg BK | C152: Vest Jy
A153: 657 | B153: Dan's Pool Hall | C153: Vest Jy
A154: 658 | B154: Kongerslev BK | C154: Vest Jy
A155: 659 | B155: Lemvig BK | C155: Vest Jy
A156: 660 | B156: Lindknud BK | C156: Vest Jy
A157: 662 | B157: Morsø BK | C157: Vest Jy
A158: 663 | B158: Mulbjerg BK | C158: Vest Jy
A159: 664 | B159: Nimtofte BK | C159: Vest Jy
A160: 665 | B160: Nord Als BC | C160: Vest Jy
A161: 666 | B161: Nr. Snede BK | C161: Vest Jy
A162: 667 | B162: Odder BK | C162: Vest Jy
A163: 668 | B163: Pandrup BK | C163: Vest Jy
A164: 670 | B164: Raa BK (Aabenraa) | C164: Vest Jy
A165: 671 | B165: Randers Pool Club | C165: Vest Jy
A166: 672 | B166: Randers BK | C166: Vest Jy
A167: 674 | B167: Rosenholm BK | C167: Vest Jy
A168: 676 | B168: Rødding BK | C168: Vest Jy
A169: 678 | B169: Silkeborg BC | C169: Vest Jy
A170: 679 | B170: Sindal BK | C170: Vest Jy
A171: 680 | B171: Skagen BK | C171: Vest Jy
A172: 681 | B172: Skanderborg BK | C172: Vest Jy
A173: 682 | B173: Solsidens BK | C173: Vest Jy
A174: 684 | B174: Struer BK | C174: Vest Jy
A175: 685 | B175: Sundeved BK | C175: Vest Jy
A176: 686 | B176: Svenstrup BK | C176: Vest Jy
A177: 687 | B177: Sæby BK | C177: Vest Jy
A178: 688 | B178: Sønderborg BK | C178: Vest Jy
A179: 689 | B179: Sønderborg Hcp-Sn | C179: Vest Jy
A180: 690 | B180: Taars BK | C180: Vest Jy
A181: 691 | B181: Taulov/Skærbæk BK | C181: Vest Jy
A182: 692 | B182: Thisted BK | C182: Vest Jy
A183: 693 | B183: Tinghøj BK | C183: Vest Jy
A184: 694 | B184: Tinglev BK | C184: Vest Jy
A185: 696 | B185: Trigeparkens BK | C185: Vest Jy
A186: 697 | B186: Tørring BK | C186: Vest Jy
A187: 700 | B187: Web Pool Club (Århus) | C187: Vest Jy | D187: L
A188: 701 | B188: Vejle BK | C188: Vest Jy
A189: 702 | B189: Viborg BK | C189: Vest Jy
A190: 703 | B190: Viby BK | C190: Vest Jy | D190: L
A191: 704 | B191: Vrå BK | C191: Vest Jy
A192: 705 | B192: Ørsø BK | C192: Vest Jy
A193: 707 | B193: Østjydsk BK | C193: Vest Jy
A194: 708 | B194: Ålbæk BK | C194: Vest Jy
A195: 901 | B195: Billund BK | C195: Vest Vb
A196: 902 | B196: Borris BK | C196: Vest Vb
A197: 904 | B197: Grindsted BK | C197: Vest Vb
A198: 905 | B198: Grønbjerg BK | C198: Vest Vb
A199: 907 | B199: Horne BK | C199: Vest Vb
A200: 909 | B200: Hvide Sande BK | C200: Vest Vb
... 19 more rows

Sheet Skema 1
B2: Spillested | X2: Spilledato: | Z2: 21-06-18 kl. 19.00
X3: Disciplin: | Z3: Danske Bank
X4: Klasse: | Z4: KLUBMESTER
K5: DEN DANSKE BILLARD UNION | X5: Distance:
X6: Runde | Z6: Finale
X7: Pulje: | Z7: Bord 2
X8: Løbe nr.
K9: KLUBMESTER
C11: Spiller navn | G11: Snit | H11: Freddy Madsen | L11: Jørgen Knudsen | P11: Jørgen Knudsen | T11: Egon Bomholdt | X11: MP | Y11: Score | Z11: Indg. | AA11: Snit | AB11: Snit % | AC11: Serie | AD11: Plac
B12: Klubnr | C12: Klub | G12: Dist. | AE12: Score %
C13: Freddy Madsen | G13: 22.13 | H13: Score | J13: Indg. | L13: 704 | N13: 21 | X13: =IF(OR(ISNUMBER(M14),ISNUMBER(Q14),ISNUMBER(U14)),SUM(M14,Q14,U14),"") -> 2 | Y13: =IF(OR(ISNUMBER(L13),ISNUMBER(P13),ISNUMBER(T13)),SUM(L13,P13,T13),"") -> 704 | Z13: =IF(OR(ISNUMBER(N13),ISNUMBER(R13),ISNUMBER(V13)),SUM(N13,R13,V13),"") -> 21 | AA13: =IF(AND(ISNUMBER(Y13),ISNUMBER(Z13)),ROUNDDOWN(Y13/Z13,2),"") -> 33.52 | AB13: =IF(AND(ISNUMBER(AA13),ISNUMBER(G13)),(AA13/G13),"") -> 151.47% | AC13: =IF(OR(ISNUMBER(L16),ISNUMBER(P16),ISNUMBER(T16)),MAX(L16,P16,T16),"") -> 130 | AD13: 1 | AE13: =+(L13+P13+T13)/(0.03*G15) -> 33.33
I14: MP | M14: 2
C15: Semifinale 2 | G15: 704
H16: Serie | J16: Snit | L16: 130 | N16: =IF(L13<1,"",IFERROR(ROUNDDOWN(L13/N13,2),"")) -> 33.52 | R16: =IF(P13<1,"",IFERROR(ROUNDDOWN(P13/R13,2),"")) ->  | V16: =IF(T13<1,"",IFERROR(ROUNDDOWN(T13/V13,2),"")) -> 
C17: Jørgen Knudsen | G17: 5.53 | H17: 172 | J17: 21 | L17: Score | N17: Indg. | X17: =IF(OR(ISNUMBER(I18),ISNUMBER(Q18),ISNUMBER(U18)),SUM(I18,Q18,U18),"") -> 0 | Y17: =IF(OR(ISNUMBER(H17),ISNUMBER(P17),ISNUMBER(T17)),SUM(H17,P17,T17),"") -> 172 | Z17: =IF(OR(ISNUMBER(J17),ISNUMBER(R17),ISNUMBER(V17)),SUM(J17,R17,V17),"") -> 21 | AA17: =IF(AND(ISNUMBER(Y17),ISNUMBER(Z17)),ROUNDDOWN(Y17/Z17,2),"") -> 8.19 | AB17: =IF(AND(ISNUMBER(AA17),ISNUMBER(G13)),(AA17/G17),"") -> 148.10% | AC17: =IF(OR(ISNUMBER(H20),ISNUMBER(P20),ISNUMBER(T20)),MAX(H20,P20,T20),"") -> 24 | AD17: 2 | AE17: =+(H17+P17+T17)/(0.03*G19) -> 27.83
I18: 0 | M18: MP
C19: Semifinale 2 | G19: 206
H20: 24 | J20: =IF(H17<1,"",IFERROR(ROUNDDOWN(H17/J17,2),"")) -> 8.19 | L20: Serie | N20: Snit | R20: =IF(P17<1,"",IFERROR(ROUNDDOWN(P17/R17,2),"")) ->  | V20: =IF(T17<1,"",IFERROR(ROUNDDOWN(T17/V17,2),"")) -> 
C21: Jørgten Knudsen | G21: =IF(ISNUMBER(G23),(G23-40)/30) -> 5.53 | P21: Score | R21: Indg. | T21: 184 | V21: 33 | X21: =IF(OR(ISNUMBER(I22),ISNUMBER(M22),ISNUMBER(U22)),SUM(I22,M22,U22),"") ->  | Y21: =IF(OR(ISNUMBER(H21),ISNUMBER(L21),ISNUMBER(T21)),SUM(H21,L21,T21),"") -> 184 | Z21: =IF(OR(ISNUMBER(J21),ISNUMBER(N21),ISNUMBER(V21)),SUM(J21,N21,V21),"") -> 33 | AA21: =IF(AND(ISNUMBER(Y21),ISNUMBER(Z21)),ROUNDDOWN(Y21/Z21,2),"") -> 5.57 | AB21: =IF(AND(ISNUMBER(AA21),ISNUMBER(G13)),(AA21/G21),"") -> 100.66% | AC21: =IF(OR(ISNUMBER(H24),ISNUMBER(L24),ISNUMBER(T24)),MAX(H24,L24,T24),"") -> 30 | AD21: 4 | AE21: =+(H21+L21+T21)/(0.03*G23) -> 29.77
Q22: MP
C23: Finale 2 | G23: 206
J24: =IF(H21<1,"",IFERROR(ROUNDDOWN(H21/J21,2),"")) ->  | N24: =IF(L21<1,"",IFERROR(ROUNDDOWN(L21/N21,2),"")) ->  | P24: Serie | R24: Snit | T24: 30 | V24: 5.57
C25: Egon Bomholdt | G25: =IF(ISNUMBER(G27),(G27-40)/30) -> 5.40 | P25: 202 | R25: 33 | T25: Score | V25: Indg. | X25: =IF(OR(ISNUMBER(I26),ISNUMBER(M26),ISNUMBER(Q26)),SUM(I26,M26,Q26),"") ->  | Y25: =IF(OR(ISNUMBER(H25),ISNUMBER(L25),ISNUMBER(P25)),SUM(H25,L25,P25),"") -> 202 | Z25: =IF(OR(ISNUMBER(J25),ISNUMBER(N25),ISNUMBER(R25)),SUM(J25,N25,R25),"") -> 33 | AA25: =IF(AND(ISNUMBER(Y25),ISNUMBER(Z25)),ROUNDDOWN(Y25/Z25,2),"") -> 6.12 | AB25: =IF(AND(ISNUMBER(AA25),ISNUMBER(G13)),(AA25/G25),"") -> 113.33% | AC25: =IF(OR(ISNUMBER(H28),ISNUMBER(L28),ISNUMBER(P28)),MAX(H28,L28,P28),"") -> 22 | AD25: 3 | AE25: =+(H25+L25+P25)/(0.03*G27) -> 33.33
U26: MP
C27: Finale 2 | G27: 202
J28: =IF(H25<1,"",IFERROR(ROUNDDOWN(H25/J25,2),"")) ->  | N28: =IF(L25<1,"",IFERROR(ROUNDDOWN(L25/N25,2),"")) ->  | P28: 22 | R28: =IF(P25<1,"",IFERROR(ROUNDDOWN(P25/R25,2),"")) -> 6.12 | T28: Serie | V28: Snit
B29: 92 | C29: 4
E31: Stævneleder

Sheet Skema 2
B2: Spillested | X2: Spilledato:
X3: Disciplin:
X4: Klasse:
X5: Distance:
K6: DEN DANSKE BILLARD UNION | X6: Runde:
X7: Pulje:
K8: TURNERINGSSKEMA | X8: Løbe nr.
C11: Spiller navn | G11: Snit | X11: MP | Y11: Score | Z11: Indg. | AA11: Snit | AB11: Snit % | AC11: Serie | AD11: Plac
B12: Klubnr | C12: Klub | G12: Dist.
H13: Score | J13: Indg. | X13: =IF(OR(ISNUMBER(M14),ISNUMBER(Q14),ISNUMBER(U14)),SUM(M14,Q14,U14),"") ->  | Y13: =IF(OR(ISNUMBER(L13),ISNUMBER(P13),ISNUMBER(T13)),SUM(L13,P13,T13),"") ->  | Z13: =IF(OR(ISNUMBER(N13),ISNUMBER(R13),ISNUMBER(V13)),SUM(N13,R13,V13),"") ->  | AA13: =IF(AND(ISNUMBER(Y13),ISNUMBER(Z13)),ROUNDDOWN(Y13/Z13,2),"") ->  | AB13: =IF(AND(ISNUMBER(AA13),ISNUMBER(G13)),(AA13/G13),"") ->  | AC13: =IF(OR(ISNUMBER(L16),ISNUMBER(P16),ISNUMBER(T16)),MAX(L16,P16,T16),"") -> 
I14: MP | M14: =IF(L13="","",IF(L13="V",2,IF(L13="T",0,IF(L13+H17=G15+G19,1,IF(L13=G15,2,0))))) ->  | Q14: =IF(P13="","",IF(P13="V",2,IF(P13="T",0,IF(P13+H21=G15+G23,1,IF(P13=G15,2,0))))) ->  | U14: =IF(T13="","",IF(T13="V",2,IF(T13="T",0,IF(T13+H25=G15+G27,1,IF(T13=G15,2,0))))) -> 
H16: Serie | J16: Snit | N16: =IF(L13<1,"",IFERROR(ROUNDDOWN(L13/N13,2),"")) ->  | R16: =IF(P13<1,"",IFERROR(ROUNDDOWN(P13/R13,2),"")) ->  | V16: =IF(T13<1,"",IFERROR(ROUNDDOWN(T13/V13,2),"")) -> 
J17: =IF(N13="","",N13) ->  | L17: Score | N17: Indg. | X17: =IF(OR(ISNUMBER(I18),ISNUMBER(Q18),ISNUMBER(U18)),SUM(I18,Q18,U18),"") ->  | Y17: =IF(OR(ISNUMBER(H17),ISNUMBER(P17),ISNUMBER(T17)),SUM(H17,P17,T17),"") ->  | Z17: =IF(OR(ISNUMBER(J17),ISNUMBER(R17),ISNUMBER(V17)),SUM(J17,R17,V17),"") ->  | AA17: =IF(AND(ISNUMBER(Y17),ISNUMBER(Z17)),ROUNDDOWN(Y17/Z17,2),"") ->  | AB17: =IF(AND(ISNUMBER(AA17),ISNUMBER(G13)),(AA17/G17),"") ->  | AC17: =IF(OR(ISNUMBER(H20),ISNUMBER(P20),ISNUMBER(T20)),MAX(H20,P20,T20),"") -> 
I18: =IF(H17="","",IF(H17="V",2,IF(H17="T",0,IF(H17+L13=G15+G19,1,IF(H17=G19,2,0))))) ->  | M18: MP | Q18: =IF(P17="","",IF(P17="V",2,IF(P17="T",0,IF(P17+L21=G19+G23,1,IF(P17=G19,2,0))))) ->  | U18: =IF(T17="","",IF(T17="V",2,IF(T17="T",0,IF(T17+L25=G19+G27,1,IF(T17=G19,2,0))))) -> 
J20: =IF(H17<1,"",IFERROR(ROUNDDOWN(H17/J17,2),"")) ->  | L20: Serie | N20: Snit | R20: =IF(P17<1,"",IFERROR(ROUNDDOWN(P17/R17,2),"")) ->  | V20: =IF(T17<1,"",IFERROR(ROUNDDOWN(T17/V17,2),"")) -> 
J21: =IF(R13="","",R13) ->  | P21: Score | R21: Indg. | X21: =IF(OR(ISNUMBER(I22),ISNUMBER(M22),ISNUMBER(U22)),SUM(I22,M22,U22),"") ->  | Y21: =IF(OR(ISNUMBER(H21),ISNUMBER(L21),ISNUMBER(T21)),SUM(H21,L21,T21),"") ->  | Z21: =IF(OR(ISNUMBER(J21),ISNUMBER(N21),ISNUMBER(V21)),SUM(J21,N21,V21),"") ->  | AA21: =IF(AND(ISNUMBER(Y21),ISNUMBER(Z21)),ROUNDDOWN(Y21/Z21,2),"") ->  | AB21: =IF(AND(ISNUMBER(AA21),ISNUMBER(G13)),(AA21/G21),"") ->  | AC21: =IF(OR(ISNUMBER(H24),ISNUMBER(L24),ISNUMBER(T24)),MAX(H24,L24,T24),"") -> 
I22: =IF(H21="","",IF(H21="V",2,IF(H21="T",0,IF(H21+P13=G15+G23,1,IF(H21=G23,2,0))))) ->  | M22: =IF(L21="","",IF(L21="V",2,IF(L21="T",0,IF(L21+P17=G19+G23,1,IF(L21=G23,2,0))))) ->  | Q22: MP | U22: =IF(T21="","",IF(T21="V",2,IF(T21="T",0,IF(T21+P25=G23+G27,1,IF(T21=G23,2,0))))) -> 
J24: =IF(H21<1,"",IFERROR(ROUNDDOWN(H21/J21,2),"")) ->  | N24: =IF(L21<1,"",IFERROR(ROUNDDOWN(L21/N21,2),"")) ->  | P24: Serie | R24: Snit | V24: =IF(T21<1,"",IFERROR(ROUNDDOWN(T21/V21,2),"")) -> 
T25: Score | V25: Indg. | X25: =IF(OR(ISNUMBER(I26),ISNUMBER(M26),ISNUMBER(Q26)),SUM(I26,M26,Q26),"") ->  | Y25: =IF(OR(ISNUMBER(H25),ISNUMBER(L25),ISNUMBER(P25)),SUM(H25,L25,P25),"") ->  | Z25: =IF(OR(ISNUMBER(J25),ISNUMBER(N25),ISNUMBER(R25)),SUM(J25,N25,R25),"") ->  | AA25: =IF(AND(ISNUMBER(Y25),ISNUMBER(Z25)),ROUNDDOWN(Y25/Z25,2),"") ->  | AB25: =IF(AND(ISNUMBER(AA25),ISNUMBER(G13)),(AA25/G25),"") ->  | AC25: =IF(OR(ISNUMBER(H28),ISNUMBER(L28),ISNUMBER(P28)),MAX(H28,L28,P28),"") -> 
I26: =IF(H25="","",IF(H25="V",2,IF(H25="T",0,IF(H25+T13=G15+G27,1,IF(H25=G27,2,0))))) ->  | M26: =IF(L25="","",IF(L25="V",2,IF(L25="T",0,IF(L25+T17=G19+G27,1,IF(L25=G27,2,0))))) ->  | Q26: =IF(P25="","",IF(P25="V",2,IF(P25="T",0,IF(P25+T21=G23+G27,1,IF(P25=G27,2,0))))) ->  | U26: MP
J28: =IF(H25<1,"",IFERROR(ROUNDDOWN(H25/J25,2),"")) ->  | N28: =IF(L25<1,"",IFERROR(ROUNDDOWN(L25/N25,2),"")) ->  | R28: =IF(P25<1,"",IFERROR(ROUNDDOWN(P25/R25,2),"")) ->  | T28: Serie | V28: Snit
B29: 92 | C29: 3
E31: Stævneleder

Sheet Skema 3
B2: Spillested | X2: Spilledato:
X3: Disciplin:
X4: Klasse:
X5: Distance:
K6: DEN DANSKE BILLARD UNION | X6: Runde:
X7: Pulje:
K8: TURNERINGSSKEMA | X8: Løbe nr.
C11: Spiller navn | G11: Snit | X11: MP | Y11: Score | Z11: Indg. | AA11: Snit | AB11: Snit % | AC11: Serie | AD11: Plac
B12: Klubnr | C12: Klub | G12: Dist.
H13: Score | J13: Indg. | X13: =IF(OR(ISNUMBER(M14),ISNUMBER(Q14),ISNUMBER(U14)),SUM(M14,Q14,U14),"") ->  | Y13: =IF(OR(ISNUMBER(L13),ISNUMBER(P13),ISNUMBER(T13)),SUM(L13,P13,T13),"") ->  | Z13: =IF(OR(ISNUMBER(N13),ISNUMBER(R13),ISNUMBER(V13)),SUM(N13,R13,V13),"") ->  | AA13: =IF(AND(ISNUMBER(Y13),ISNUMBER(Z13)),ROUNDDOWN(Y13/Z13,2),"") ->  | AB13: =IF(AND(ISNUMBER(AA13),ISNUMBER(G13)),(AA13/G13),"") ->  | AC13: =IF(OR(ISNUMBER(L16),ISNUMBER(P16),ISNUMBER(T16)),MAX(L16,P16,T16),"") -> 
I14: MP | M14: =IF(L13="","",IF(L13="V",2,IF(L13="T",0,IF(L13+H17=G15+G19,1,IF(L13=G15,2,0))))) ->  | Q14: =IF(P13="","",IF(P13="V",2,IF(P13="T",0,IF(P13+H21=G15+G23,1,IF(P13=G15,2,0))))) ->  | U14: =IF(T13="","",IF(T13="V",2,IF(T13="T",0,IF(T13+H25=G15+G27,1,IF(T13=G15,2,0))))) -> 
H16: Serie | J16: Snit | N16: =IF(L13<1,"",IFERROR(ROUNDDOWN(L13/N13,2),"")) ->  | R16: =IF(P13<1,"",IFERROR(ROUNDDOWN(P13/R13,2),"")) ->  | V16: =IF(T13<1,"",IFERROR(ROUNDDOWN(T13/V13,2),"")) -> 
J17: =IF(N13="","",N13) ->  | L17: Score | N17: Indg. | X17: =IF(OR(ISNUMBER(I18),ISNUMBER(Q18),ISNUMBER(U18)),SUM(I18,Q18,U18),"") ->  | Y17: =IF(OR(ISNUMBER(H17),ISNUMBER(P17),ISNUMBER(T17)),SUM(H17,P17,T17),"") ->  | Z17: =IF(OR(ISNUMBER(J17),ISNUMBER(R17),ISNUMBER(V17)),SUM(J17,R17,V17),"") ->  | AA17: =IF(AND(ISNUMBER(Y17),ISNUMBER(Z17)),ROUNDDOWN(Y17/Z17,2),"") ->  | AB17: =IF(AND(ISNUMBER(AA17),ISNUMBER(G13)),(AA17/G17),"") ->  | AC17: =IF(OR(ISNUMBER(H20),ISNUMBER(P20),ISNUMBER(T20)),MAX(H20,P20,T20),"") -> 
I18: =IF(H17="","",IF(H17="V",2,IF(H17="T",0,IF(H17+L13=G15+G19,1,IF(H17=G19,2,0))))) ->  | M18: MP | Q18: =IF(P17="","",IF(P17="V",2,IF(P17="T",0,IF(P17+L21=G19+G23,1,IF(P17=G19,2,0))))) ->  | U18: =IF(T17="","",IF(T17="V",2,IF(T17="T",0,IF(T17+L25=G19+G27,1,IF(T17=G19,2,0))))) -> 
J20: =IF(H17<1,"",IFERROR(ROUNDDOWN(H17/J17,2),"")) ->  | L20: Serie | N20: Snit | R20: =IF(P17<1,"",IFERROR(ROUNDDOWN(P17/R17,2),"")) ->  | V20: =IF(T17<1,"",IFERROR(ROUNDDOWN(T17/V17,2),"")) -> 
J21: =IF(R13="","",R13) ->  | N21: =IF(R17="","",R17) ->  | P21: Score | R21: Indg. | X21: =IF(OR(ISNUMBER(I22),ISNUMBER(M22),ISNUMBER(U22)),SUM(I22,M22,U22),"") ->  | Y21: =IF(OR(ISNUMBER(H21),ISNUMBER(L21),ISNUMBER(T21)),SUM(H21,L21,T21),"") ->  | Z21: =IF(OR(ISNUMBER(J21),ISNUMBER(N21),ISNUMBER(V21)),SUM(J21,N21,V21),"") ->  | AA21: =IF(AND(ISNUMBER(Y21),ISNUMBER(Z21)),ROUNDDOWN(Y21/Z21,2),"") ->  | AB21: =IF(AND(ISNUMBER(AA21),ISNUMBER(G13)),(AA21/G21),"") ->  | AC21: =IF(OR(ISNUMBER(H24),ISNUMBER(L24),ISNUMBER(T24)),MAX(H24,L24,T24),"") -> 
I22: =IF(H21="","",IF(H21="V",2,IF(H21="T",0,IF(H21+P13=G15+G23,1,IF(H21=G23,2,0))))) ->  | M22: =IF(L21="","",IF(L21="V",2,IF(L21="T",0,IF(L21+P17=G19+G23,1,IF(L21=G23,2,0))))) ->  | Q22: MP | U22: =IF(T21="","",IF(T21="V",2,IF(T21="T",0,IF(T21+P25=G23+G27,1,IF(T21=G23,2,0))))) -> 
J24: =IF(H21<1,"",IFERROR(ROUNDDOWN(H21/J21,2),"")) ->  | N24: =IF(L21<1,"",IFERROR(ROUNDDOWN(L21/N21,2),"")) ->  | P24: Serie | R24: Snit | V24: =IF(T21<1,"",IFERROR(ROUNDDOWN(T21/V21,2),"")) -> 
J25: =IF(V13="","",V13) ->  | N25: =IF(V17="","",V17) ->  | R25: =IF(V21="","",V21) ->  | T25: Score | V25: Indg. | X25: =IF(OR(ISNUMBER(I26),ISNUMBER(M26),ISNUMBER(Q26)),SUM(I26,M26,Q26),"") ->  | Y25: =IF(OR(ISNUMBER(H25),ISNUMBER(L25),ISNUMBER(P25)),SUM(H25,L25,P25),"") ->  | Z25: =IF(OR(ISNUMBER(J25),ISNUMBER(N25),ISNUMBER(R25)),SUM(J25,N25,R25),"") ->  | AA25: =IF(AND(ISNUMBER(Y25),ISNUMBER(Z25)),ROUNDDOWN(Y25/Z25,2),"") ->  | AB25: =IF(AND(ISNUMBER(AA25),ISNUMBER(G13)),(AA25/G25),"") ->  | AC25: =IF(OR(ISNUMBER(H28),ISNUMBER(L28),ISNUMBER(P28)),MAX(H28,L28,P28),"") -> 
I26: =IF(H25="","",IF(H25="V",2,IF(H25="T",0,IF(H25+T13=G15+G27,1,IF(H25=G27,2,0))))) ->  | M26: =IF(L25="","",IF(L25="V",2,IF(L25="T",0,IF(L25+T17=G19+G27,1,IF(L25=G27,2,0))))) ->  | Q26: =IF(P25="","",IF(P25="V",2,IF(P25="T",0,IF(P25+T21=G23+G27,1,IF(P25=G27,2,0))))) ->  | U26: MP
J28: =IF(H25<1,"",IFERROR(ROUNDDOWN(H25/J25,2),"")) ->  | N28: =IF(L25<1,"",IFERROR(ROUNDDOWN(L25/N25,2),"")) ->  | R28: =IF(P25<1,"",IFERROR(ROUNDDOWN(P25/R25,2),"")) ->  | T28: Serie | V28: Snit
B29: 92 | C29: 3
E31: Stævneleder

Sheet Spillelister
B2: Logo | E2: Dato: | L2: Logo | O2: Dato:
E3: Ru.: | F3: 2 | H3: Udlæg: | O3: =E3 -> Ru.: | P3: 2 | R3: Udlæg:
A4: Navn: | K4: Navn:
A5: Klubnr: | E5: Klub: | F5: Poul Erik Svensson | K5: Klubnr: | O5: Klub: | P5: Freddy Madsen
A6: Turn. art: | C6: Danske Bank KLUBMESTER | K6: Turn. art: | M6: Danske Bank KLUBMESTER
A7: Licens: | F7: Dist.: | G7: 304 | K7: Licens: | P7: Dist.: | Q7: 704
A8: Modstander: | C8: =IF(M4="","",M4 & " - " &P5) ->  | K8: Modstander: | M8: =IF(C4="","",C4 & " - " &F5) -> 
B9: Serie | C9: Total | E9: Serie | F9: Total | H9: Serie | I9: Total | L9: Serie | M9: Total | O9: Serie | P9: Total | R9: Serie | S9: Total
A10: 1 | D10: 31 | G10: 61 | K10: 1 | N10: 31 | Q10: 61
A11: =A10+1 -> 2 | D11: =D10+1 -> 32 | G11: =G10+1 -> 62 | K11: =K10+1 -> 2 | N11: =N10+1 -> 32 | Q11: =Q10+1 -> 62
A12: 3 | D12: 33 | G12: 63 | K12: 3 | N12: 33 | Q12: 63
A13: 4 | D13: 34 | G13: 64 | K13: 4 | N13: 34 | Q13: 64
A14: 5 | D14: 35 | G14: 65 | K14: 5 | N14: 35 | Q14: 65
A15: 6 | D15: 36 | G15: 66 | K15: 6 | N15: 36 | Q15: 66
A16: 7 | D16: 37 | G16: 67 | K16: 7 | N16: 37 | Q16: 67
A17: 8 | D17: 38 | G17: 68 | K17: 8 | N17: 38 | Q17: 68
A18: 9 | D18: 39 | G18: 69 | K18: 9 | N18: 39 | Q18: 69
A19: 10 | D19: 40 | G19: 70 | K19: 10 | N19: 40 | Q19: 70
A20: 11 | D20: 41 | G20: 71 | K20: 11 | N20: 41 | Q20: 71
A21: 12 | D21: 42 | G21: 72 | K21: 12 | N21: 42 | Q21: 72
A22: 13 | D22: 43 | G22: 73 | K22: 13 | N22: 43 | Q22: 73
A23: 14 | D23: 44 | G23: 74 | K23: 14 | N23: 44 | Q23: 74
A24: 15 | D24: 45 | G24: 75 | K24: 15 | N24: 45 | Q24: 75
A25: 16 | D25: 46 | G25: 76 | K25: 16 | N25: 46 | Q25: 76
A26: 17 | D26: 47 | G26: 77 | K26: 17 | N26: 47 | Q26: 77
A27: 18 | D27: 48 | G27: 78 | K27: 18 | N27: 48 | Q27: 78
A28: 19 | D28: 49 | G28: 79 | K28: 19 | N28: 49 | Q28: 79
A29: 20 | D29: 50 | G29: 80 | K29: 20 | N29: 50 | Q29: 80
A30: 21 | D30: 51 | G30: 81 | K30: 21 | N30: 51 | Q30: 81
A31: 22 | D31: 52 | G31: 82 | K31: 22 | N31: 52 | Q31: 82
A32: 23 | D32: 53 | G32: 83 | K32: 23 | N32: 53 | Q32: 83
A33: 24 | D33: 54 | G33: 84 | K33: 24 | N33: 54 | Q33: 84
A34: 25 | D34: 55 | G34: 85 | K34: 25 | N34: 55 | Q34: 85
A35: 26 | D35: 56 | G35: 86 | K35: 26 | N35: 56 | Q35: 86
A36: 27 | D36: 57 | G36: 87 | K36: 27 | N36: 57 | Q36: 87
A37: 28 | D37: 58 | G37: 88 | K37: 28 | N37: 58 | Q37: 88
A38: 29 | D38: 59 | G38: 89 | K38: 29 | N38: 59 | Q38: 89
A39: 30 | D39: 60 | G39: 90 | K39: 30 | N39: 60 | Q39: 90
A40: Snit: | F40: Serie: | K40: Snit: | P40: Serie:
A41: Dommer: | K41: Dommer:
A42: Listefører: | K42: Listefører:

Sheet Ark1
A1: 1 | B1: 2 | C1: 3 | D1: 4 | E1: 5 | F1: 6 | G1: 7 | H1: 8 | I1: 9 | J1: 10 | K1: 11 | L1: 12 | M1: 13 | N1: 14 | O1: 15 | P1: 16 | Q1: 17 | R1: 18 | S1: 19 | T1: 20 | U1: 21 | V1: 22 | W1: 23 | X1: 24 | Y1: 25 | Z1: 26 | AA1: 27
